bitfinex-derivatives/quotes_SOLF0:USTF0_20240911
["timestamp","ask_amount","ask_price","bid_price","bid_amount"]
[1726065294129,1.4249,128.93,128.92,3.8785]
[1726065294839,1.3569,128.95,128.93,3.878]
[1726065295032,1.3569,128.95,128.87,29.78]
[1726065295229,1.3569,128.95,128.85,29.78]
[1726065295431,1.3569,128.95,128.94,3.8779]
[1726065295921,31.108,128.98,128.95,3.8776]
[1726065296128,31.108,128.98,128.87,29.78]
[1726065296434,32.4327,128.98,128.87,29.78]
[1726065296624,32.4327,128.98,128.86,29.78]
[1726065296825,32.4327,128.98,128.87,1.42515474]
[1726065297025,32.4327,128.98,128.87,2.78105474]
[1726065297225,32.4327,128.98,128.88,1.42515448]
[1726065297429,32.4327,128.98,128.94,3.8777]
[1726065297637,32.4327,128.98,128.88,1.4086]
[1726065297933,1.4162,128.99,128.9,29.78]
[1726065298126,29.78,129.03,128.98,3.8767]
[1726065298335,1.354,129.02,128.9,33.67543903]
[1726065298536,1.354,129.02,128.9,29.78]
[1726065298824,29.78,129.0,128.9,3.93305926]
[1726065299033,29.78,129.0,128.89,1.3784]
[1726065299227,1.354,129.02,128.92,29.78]
[1726065299436,1.354,129.02,128.94,29.78]
[1726065299630,1.354,129.02,129.01,3.8758]
[1726065300543,29.78,129.1,128.98,29.78]
[1726065300925,29.78,129.1,128.95,1.3152]
[1726065300926,2.7042,129.11,128.99,1.3326]
[1726065301225,3.8746,129.06,128.95,1.3152]
[1726065301424,1.4303,129.05,128.95,31.0952]
[1726065301629,29.78,129.04,128.95,1.3152]
[1726065301925,29.78,129.02,128.93,1.3326]
[1726065302124,29.78,129.02,128.92,3.84928637]
[1726065302328,29.78,129.02,128.91,1.309]
[1726065302931,29.78,129.02,128.91,5.25706201]
[1726065303236,29.78,129.04,128.92,31.20459906]
[1726065303533,1.4303,129.05,128.97,29.78]
[1726065303734,1.4303,129.05,128.95,29.78]
[1726065303935,29.78,129.11,129.0,29.78]
[1726065304233,29.78,129.11,129.0,33.57340255]
[1726065304739,1.385,129.12,129.0,33.57340255]
[1726065305330,1.385,129.12,129.05,29.78]
[1726065305538,29.78,129.16,129.05,29.78]
[1726065305738,29.78,129.16,129.06,4.0381]
[1726065306637,29.78,129.18,129.07,29.78]
[1726065307035,29.78,129.18,129.12,3.8725]
[1726065307230,29.78,129.18,129.11,3.93974597]
[1726065307443,29.78,129.18,129.09,29.78]
[1726065307641,1.3273,129.22,129.11,29.78]
[1726065307642,29.78,129.2,129.11,29.78]
[1726065307940,1.3273,129.22,129.09,29.78]
[1726065308141,1.3273,129.22,129.13,29.78]
[1726065308444,1.3273,129.22,129.15,29.78]
[1726065308642,1.3273,129.22,129.17,3.8708]
[1726065308845,1.3273,129.22,129.14,1.3732]
[1726065309143,29.78,129.21,129.14,3.8717]
[1726065309339,29.78,129.21,129.11,29.78]
[1726065309340,1.3273,129.22,129.11,29.78]
[1726065309542,1.3273,129.22,129.11,33.67211586]
[1726065310338,29.78,129.21,129.14,3.8718]
[1726065310538,29.78,129.21,129.11,33.67211586]
[1726065311043,29.78,129.21,129.12,3.78376457]
[1726065311240,29.78,129.21,129.09,29.78]
[1726065311437,29.78,129.21,129.14,3.8719]
[1726065311641,29.78,129.21,129.09,33.63576991]
[1726065311844,1.3273,129.22,129.12,29.78]
[1726065312144,1.3273,129.22,129.1,1.42281488]
[1726065312145,29.78,129.21,129.1,29.78]
[1726065312555,1.3273,129.22,129.08,29.78]
[1726065312556,29.78,129.19,129.08,29.78]
[1726065312738,29.78,129.19,129.07,1.3732]
[1726065312739,29.78,129.17,129.07,5.17206246]
[1726065312940,29.78,129.17,129.11,3.8728]
[1726065313247,29.78,129.17,129.07,1.3732]
[1726065313248,29.78,129.15,129.07,1.3732]
[1726065313542,29.78,129.15,129.07,5.21932142]
[1726065313543,1.4261,129.14,129.07,5.21932142]
[1726065313747,29.78,129.15,129.07,5.21932142]
[1726065313944,29.78,129.17,129.07,5.21932142]
[1726065314751,1.4218,129.19,129.08,31.20305011]
[1726065314940,1.4218,129.19,129.08,29.78]
[1726065315852,29.78,129.17,129.08,29.78]
[1726065316349,31.2018,129.19,129.1,29.78]
[1726065316646,1.4218,129.19,129.14,3.8717]
[1726065318140,1.4218,129.19,129.1,29.78]
[1726065318651,1.4218,129.19,129.15,3.8716]
[1726065318852,1.4218,129.19,129.1,29.78]
[1726065319346,1.4218,129.19,129.15,3.8715]
[1726065319548,1.4218,129.19,129.1,29.78]
[1726065320852,1.4218,129.19,129.15,3.8715]
[1726065321049,1.4218,129.19,129.1,29.78]
[1726065321752,1.4218,129.19,129.07,5.21932142]
[1726065321753,1.4218,129.19,129.12,29.78]
[1726065321953,1.4218,129.19,129.16,3.8711]
[1726065322646,29.78,129.17,129.07,5.21932142]
[1726065322852,29.78,129.15,129.06,1.3295]
[1726065323153,1.3709,129.14,129.06,1.3295]
[1726065323341,29.78,129.12,129.03,29.78]
[1726065323549,29.78,129.12,129.04,1.42336383]
[1726065323748,29.78,129.12,129.06,3.8742]
[1726065323951,31.1619,129.12,129.06,3.8742]
[1726065324154,1.3819,129.12,129.02,31.2074]
[1726065324347,1.3819,129.12,129.08,3.8735]
[1726065324545,1.3819,129.12,129.07,3.80828814]
[1726065324746,1.3819,129.12,129.09,3.8731]
[1726065324956,1.326,129.13,129.07,3.91247095]
[1726065325153,1.3819,129.18,129.06,29.78]
[1726065325352,4.0627,129.18,129.07,1.42320924]
[1726065325552,4.0627,129.18,129.08,29.78]
[1726065325751,4.0627,129.18,129.1,29.78]
[1726065326447,29.78,129.21,129.1,29.78]
[1726065326848,33.8567,129.23,129.13,29.78]
[1726065327053,4.0767,129.23,129.15,29.78]
[1726065327356,4.0767,129.23,129.15,33.73192062]
[1726065327663,1.3412,129.23,129.15,33.73192062]
[1726065327858,29.78,129.26,129.16,2.696]
[1726065328071,29.78,129.24,129.16,3.8713]
[1726065328261,1.4151,129.23,129.13,29.78]
[1726065328553,1.4151,129.23,129.16,3.871]
[1726065329262,1.4151,129.23,129.17,3.8709]
[1726065330059,1.4151,129.23,129.16,3.8711]
[1726065330357,29.78,129.21,129.11,29.78]
[1726065330658,29.78,129.19,129.13,3.872]
[1726065330862,1.3113,129.18,129.1,2.696]
[1726065331364,29.78,129.21,129.11,29.78]
[1726065332262,29.78,129.21,129.16,3.8711]
[1726065332457,29.78,129.21,129.11,29.78]
[1726065333066,2.7264,129.23,129.12,1.42278768]
[1726065333457,2.7264,129.23,129.11,29.78]
[1726065333753,2.7264,129.23,129.16,3.8711]
[1726065333754,29.78,129.22,129.16,3.8711]
[1726065333954,29.78,129.22,129.11,29.78]
[1726065333955,31.1643,129.22,129.11,29.78]
[1726065334350,29.78,129.19,129.1,2.696]
[1726065334555,29.78,129.19,129.11,1.42291643]
[1726065334956,29.78,129.21,129.1,2.696]
[1726065335163,29.78,129.21,129.11,1.42292189]
[1726065335353,29.78,129.21,129.15,3.8715]
[1726065335553,29.78,129.21,129.1,2.696]
[1726065335760,29.78,129.21,129.11,31.20289933]
[1726065335959,1.3843,129.22,129.13,29.78]
[1726065336156,1.3843,129.22,129.14,1.42289933]
[1726065336363,1.3843,129.22,129.14,3.95247015]
[1726065336564,1.3843,129.22,129.13,29.78]
[1726065336961,1.3843,129.22,129.14,1.42260016]
[1726065337165,1.3843,129.22,129.18,3.8705]
[1726065337463,1.4151,129.23,129.13,29.78]
[1726065337663,1.4151,129.23,129.14,2.84518616]
[1726065337858,1.3414,129.25,129.16,29.78]
[1726065338364,1.3414,129.25,129.21,3.8697]
[1726065338556,1.3414,129.25,129.17,1.3306]
[1726065338957,1.3414,129.25,129.21,3.8698]
[1726065339168,1.3414,129.25,129.17,1.3306]
[1726065339362,1.3414,129.25,129.17,4.0121]
[1726065339868,31.1759,129.28,129.18,29.78]
[1726065340072,32.5161,129.28,129.21,3.8698]
[1726065340467,32.5161,129.28,129.18,29.78]
[1726065340965,32.5161,129.28,129.17,4.0121]
[1726065342167,32.5161,129.28,129.18,29.78]
[1726065342582,2.7361,129.28,129.18,29.78]
[1726065343363,32.5161,129.28,129.2,3.87]
[1726065343574,3.90613271,129.27,129.18,3.87362676]
[1726065344073,3.90613271,129.27,129.21,3.8696]
[1726065344371,3.90613271,129.27,129.17,4.0121]
[1726065344372,29.78,129.25,129.17,7.93293779]
[1726065344562,29.78,129.25,129.19,3.8702]
[1726065344762,29.78,129.25,129.17,1.3306]
[1726065344968,29.78,129.25,129.14,31.20259308]
[1726065345271,29.78,129.23,129.15,3.81751528]
[1726065345569,29.78,129.21,129.14,1.42259308]
[1726065345967,29.78,129.19,129.14,1.42259308]
[1726065346376,29.78,129.19,129.12,3.80157234]
[1726065346577,29.78,129.19,129.09,4.0893]
[1726065346969,29.78,129.17,129.09,4.0893]
[1726065347168,29.78,129.17,129.08,174.59989297]
[1726065348176,29.78,129.2,129.08,174.59989297]
[1726065349373,29.78,129.2,129.12,3.8724]
[1726065349572,29.78,129.17,129.12,3.8724]
[1726065349776,29.78,129.17,129.08,174.59989297]
[1726065350574,29.78,129.15,129.09,3.8732]
[1726065350772,29.78,129.15,129.08,174.59989297]
[1726065350975,29.78,129.13,129.06,1.3811]
[1726065351381,29.78,129.13,129.07,3.8739]
[1726065351677,1.322,129.12,129.02,1.4314]
[1726065351878,1.322,129.12,129.04,6.63836679]
[1726065352079,1.322,129.12,129.04,2.766]
[1726065352383,1.322,129.12,129.07,3.8739]
[1726065352588,1.322,129.12,129.04,2.766]
[1726065352879,1.322,129.12,129.07,3.8738]
[1726065353079,1.322,129.12,129.04,2.766]
[1726065353281,1.322,129.12,129.05,3.95267658]
[1726065353476,3.8731,129.11,129.05,3.95267658]
[1726065353668,1.322,129.12,129.04,2.766]
[1726065353872,1.322,129.12,129.04,6.64701398]
[1726065355781,29.78,129.11,129.04,1.3752]
[1726065356479,1.322,129.12,129.04,1.3752]
[1726065357482,1.322,129.12,129.06,3.8742]
[1726065357673,1.322,129.12,129.04,1.3752]
[1726065358078,1.322,129.12,129.04,2.7839]
[1726065358484,1.322,129.12,129.09,3.8732]
[1726065358682,29.78,129.15,129.05,29.78]
[1726065358883,33.6512,129.17,129.11,3.8726]
[1726065359079,33.6512,129.17,129.05,29.78]
[1726065359279,33.6512,129.17,129.07,29.78]
[1726065359474,33.6512,129.17,129.08,1.3233]
[1726065360186,29.78,129.17,129.08,1.3233]
[1726065360575,29.78,129.17,129.1,3.8728]
[1726065360774,29.78,129.17,129.08,1.3233]
[1726065361289,29.78,129.15,129.05,29.78]
[1726065361581,3.8715,129.16,129.06,1.4113]
[1726065361986,29.78,129.17,129.07,29.78]
[1726065362183,31.1169,129.21,129.1,29.78]
[1726065362386,32.5333,129.21,129.11,1.4375]
[1726065362607,32.5333,129.21,129.12,29.78]
[1726065362890,1.4164,129.21,129.12,31.1257]
[1726065363187,29.78,129.24,129.14,29.78]
[1726065363483,1.3662,129.25,129.16,29.78]
[1726065363689,1.3662,129.25,129.2,3.8699]
[1726065364193,1.3662,129.25,129.21,3.8696]
[1726065364486,1.3662,129.25,129.19,3.95159573]
[1726065364688,33.67504477,129.28,129.18,1.3457]
[1726065364888,33.67504477,129.28,129.21,3.8695]
[1726065365078,29.78,129.28,129.18,31.1257]
[1726065365289,2.7658,129.3,129.2,29.78]
[1726065365591,1.3701,129.3,129.23,29.78]
[1726065365892,1.3701,129.3,129.27,3.8677]
[1726065366190,31.1462,129.33,129.23,29.78]
[1726065366490,32.5177,129.33,129.23,29.78]
[1726065366683,32.5177,129.33,129.24,1.4069]
[1726065367083,33.73526116,129.35,129.25,3.88631073]
[1726065367280,29.78,129.35,129.25,1.3625]
[1726065367489,29.78,129.35,129.25,31.1425]
[1726065367683,29.78,129.37,129.3,3.8668]
[1726065368189,29.78,129.37,129.26,1.3603]
[1726065369690,29.78,129.37,129.27,29.78]
[1726065369892,29.78,129.37,129.26,1.3603]
[1726065370288,29.78,129.37,129.27,29.78]
[1726065370480,8.013,129.38,129.31,3.8666]
[1726065370793,8.013,129.38,129.27,29.78]
[1726065370794,4.1482,129.38,129.27,29.78]
[1726065371090,4.1482,129.38,129.31,3.8667]
[1726065371291,4.1482,129.38,129.27,29.78]
[1726065372789,4.1482,129.38,129.29,3.8673]
[1726065372987,29.78,129.35,129.26,1.3603]
[1726065373389,29.78,129.33,129.26,1.3603]
[1726065373579,29.78,129.33,129.25,3.77872316]
[1726065373580,33.61089414,129.33,129.25,3.77872316]
[1726065373784,33.61089414,129.33,129.24,1.4069]
[1726065373981,3.8666,129.32,129.26,3.8683]
[1726065374189,29.78,129.35,129.25,3.91672968]
[1726065374581,29.78,129.33,129.24,1.4069]
[1726065374991,29.78,129.33,129.25,3.80500572]
[1726065375393,33.58809985,129.33,129.25,3.80500572]
[1726065375591,33.58809985,129.33,129.25,7.67340572]
[1726065375788,33.58809985,129.33,129.25,3.80500572]
[1726065375988,29.78,129.33,129.25,3.80500572]
[1726065376187,29.78,129.33,129.28,3.8675]
[1726065376397,29.78,129.33,129.25,3.92219587]
[1726065376797,33.6464,129.33,129.27,3.8678]
[1726065377296,33.6464,129.33,129.28,3.8676]
[1726065377484,29.78,129.31,129.21,29.78]
[1726065377690,29.78,129.31,129.2,4.1315]
[1726065377691,29.78,129.29,129.2,4.1315]
[1726065377885,1.4225,129.3,129.2,4.1315]
[1726065378293,1.4225,129.3,129.25,3.8686]
[1726065378490,1.4225,129.3,129.2,4.1315]
[1726065378792,1.4225,129.3,129.21,29.78]
[1726065378998,29.78,129.35,129.23,29.78]
[1726065379193,29.78,129.35,129.25,29.78]
[1726065379389,1.4225,129.36,129.31,3.8666]
[1726065379991,1.4225,129.36,129.27,29.78]
[1726065380194,2.7767,129.38,129.28,2.6869]
[1726065380392,2.7767,129.38,129.31,3.8667]
[1726065380799,3.8652,129.37,129.31,3.8667]
[1726065380999,29.78,129.37,129.28,4.0157]
[1726065381195,29.78,129.37,129.28,2.6869]
[1726065381595,2.7767,129.38,129.33,3.866]
[1726065381796,2.7767,129.38,129.3,29.78]
[1726065382191,2.7767,129.38,129.29,1.3503]
[1726065382192,2.7767,129.38,129.31,29.78]
[1726065382494,2.7767,129.38,129.29,31.1303]
[1726065382695,2.7767,129.38,129.29,1.3503]
[1726065383200,3.8651,129.37,129.32,3.8665]
[1726065383393,2.7767,129.38,129.29,1.3503]
[1726065383704,6.6416,129.38,129.32,3.8663]
[1726065384198,3.8651,129.37,129.32,3.8663]
[1726065384702,2.7767,129.38,129.28,2.6869]
[1726065385002,29.78,129.37,129.28,2.6869]
[1726065385500,2.7767,129.38,129.28,2.6869]
[1726065385998,3.8651,129.37,129.32,3.8663]
[1726065386205,2.7767,129.38,129.32,3.9608783]
[1726065386400,2.7767,129.38,129.29,29.78]
[1726065386601,2.7767,129.38,129.29,31.1248]
[1726065389505,6.6415,129.38,129.32,3.8663]
[1726065389697,2.7767,129.38,129.28,2.6869]
[1726065389898,3.8658,129.35,129.29,3.8672]
[1726065390301,29.78,129.37,129.29,3.8672]
[1726065390495,3.8662,129.33,129.28,6.5545]
[1726065390801,29.78,129.35,129.23,29.78]
[1726065391013,3.8668,129.31,129.23,29.78]
[1726065391203,3.8668,129.31,129.21,32.4241]
[1726065391507,3.8672,129.3,129.24,3.8688]
[1726065391699,29.78,129.31,129.21,32.4241]
[1726065391901,32.4973,129.31,129.21,2.6441]
[1726065392100,3.8677,129.29,129.21,2.6441]
[1726065393094,32.4973,129.31,129.21,2.6441]
[1726065393301,29.78,129.28,129.19,174.42912729]
[1726065393504,29.78,129.28,129.19,3.8704]
[1726065393702,29.78,129.28,129.17,29.78]
[1726065393906,29.78,129.25,129.16,3.89774133]
[1726065394104,29.78,129.25,129.18,3.8707]
[1726065394503,29.78,129.27,129.17,3.77292779]
[1726065394707,29.78,129.27,129.2,3.8701]
[1726065394907,3.8685,129.26,129.16,29.78]
[1726065395412,29.78,129.25,129.15,4.053]
[1726065395709,29.78,129.25,129.15,7.86307661]
[1726065395710,2.7768,129.24,129.15,7.86307661]
[1726065395906,1.3563,129.25,129.16,29.78]
[1726065396407,29.78,129.28,129.18,29.78]
[1726065396602,31.1575,129.3,129.18,29.78]
[1726065396809,31.1575,129.3,129.15,7.86307661]
[1726065396810,31.1575,129.3,129.21,29.78]
[1726065397005,31.1575,129.3,129.24,3.8687]
[1726065398113,31.1575,129.3,129.23,3.8691]
[1726065398298,31.1575,129.3,129.21,29.78]
[1726065398499,3.8677,129.29,129.23,3.8692]
[1726065398909,3.8677,129.29,129.19,29.78]
[1726065399113,31.1575,129.3,129.19,29.78]
[1726065399407,1.3775,129.3,129.21,29.78]
[1726065399610,1.3775,129.3,129.22,2.8308]
[1726065399912,1.3775,129.3,129.23,29.78]
[1726065400406,1.3775,129.3,129.26,3.868]
[1726065401811,1.3775,129.3,129.27,3.868]
[1726065402806,1.3775,129.3,129.23,29.78]
[1726065404302,1.3775,129.3,129.26,3.8681]
[1726065405218,1.3775,129.3,129.27,3.868]
[1726065405607,5.2447,129.3,129.23,29.78]
[1726065405803,5.2447,129.3,129.24,3.8688]
[1726065406010,1.3775,129.3,129.24,3.8688]
[1726065406205,1.3775,129.3,129.22,2.8308]
[1726065406413,29.78,129.26,129.15,31.1011]
[1726065406608,29.78,129.24,129.16,3.95095157]
[1726065406913,3.96023518,129.23,129.15,5.19120676]
[1726065407107,29.78,129.22,129.13,2.7567]
[1726065407308,3.87,129.21,129.15,3.8713]
[1726065407503,33.57634646,129.22,129.13,2.7567]
[1726065408106,3.8704,129.2,129.13,2.7567]
[1726065408310,3.8704,129.2,129.07,1.3052]
[1726065408311,29.78,129.2,129.09,29.78]
[1726065408715,3.8706,129.19,129.12,3.8724]
[1726065408915,29.78,129.2,129.09,29.78]
[1726065409113,33.57634646,129.22,129.11,29.78]
[1726065409309,29.78,129.22,129.11,29.78]
[1726065409507,33.73309234,129.22,129.11,29.78]
[1726065409712,3.8699,129.21,129.14,3.8717]
[1726065409916,33.73309234,129.22,129.11,29.78]
[1726065411108,33.73309234,129.22,129.17,3.8708]
[1726065411309,29.78,129.22,129.14,3.84135955]
[1726065411513,4.1547,129.23,129.14,29.78]
[1726065411713,4.1547,129.23,129.17,3.8709]
[1726065411914,4.1547,129.23,129.14,33.59619696]
[1726065412608,29.78,129.2,129.09,29.78]
[1726065412816,29.78,129.2,129.14,3.8716]
[1726065413013,29.78,129.2,129.09,29.78]
[1726065413620,29.78,129.18,129.09,29.78]
[1726065414017,29.78,129.18,129.14,3.8717]
[1726065414213,29.78,129.18,129.09,29.78]
[1726065414413,29.78,129.21,129.11,29.78]
[1726065414930,33.9347,129.23,129.11,29.78]
[1726065415222,33.9347,129.23,129.18,3.8705]
[1726065415920,33.9347,129.23,129.19,3.8703]
[1726065416325,29.78,129.21,129.08,2.7489]
[1726065416520,29.78,129.19,129.08,32.5289]
[1726065416927,3.8708,129.18,129.08,32.5289]
[1726065417125,29.78,129.19,129.08,32.5289]
[1726065417335,29.78,129.19,129.14,3.8717]
[1726065417524,29.78,129.19,129.08,32.5289]
[1726065418442,29.78,129.17,129.08,2.7489]
[1726065418935,29.78,129.17,129.12,3.8725]
[1726065419142,33.58972663,129.17,129.12,3.8725]
[1726065419337,33.58972663,129.17,129.08,2.7489]
[1726065419532,37.46072663,129.17,129.12,3.8724]
[1726065419732,33.58972663,129.17,129.08,2.7489]
[1726065419933,29.78,129.17,129.08,2.7489]
[1726065420139,33.6506,129.19,129.13,3.872]
[1726065420641,33.6505,129.19,129.14,3.8718]
[1726065421031,29.78,129.19,129.08,2.7489]
[1726065421234,3.8702,129.2,129.15,3.8714]
[1726065421430,29.78,129.19,129.08,2.7489]
[1726065421636,29.78,129.17,129.09,1.3553]
[1726065421838,29.78,129.17,129.12,3.8725]
[1726065422341,29.78,129.17,129.13,3.8721]
[1726065422543,29.78,129.19,129.09,1.3553]
[1726065423443,33.6499,129.21,129.17,3.871]
[1726065423638,29.78,129.21,129.17,3.871]
[1726065424234,33.6498,129.21,129.17,3.871]
[1726065424445,29.78,129.21,129.18,3.8706]
[1726065425235,33.6498,129.21,129.18,3.8706]
[1726065425443,33.9347,129.23,129.2,3.8701]
[1726065425641,33.9347,129.23,129.12,29.78]
[1726065426541,37.804,129.23,129.12,29.78]
[1726065426841,33.9347,129.23,129.12,29.78]
[1726065427041,37.804,129.23,129.19,3.8702]
[1726065427540,37.804,129.23,129.16,3.8711]
[1726065427541,3.8703,129.2,129.16,3.8711]
[1726065427743,29.78,129.21,129.1,29.78]
[1726065428439,33.9347,129.23,129.12,29.78]
[1726065429342,29.78,129.26,129.09,1.3553]
[1726065429343,29.78,129.25,129.14,29.78]
[1726065429539,29.78,129.27,129.16,29.78]
[1726065429745,3.8685,129.26,129.21,3.8696]
[1726065429940,29.78,129.27,129.21,3.8696]
[1726065430344,3.8692,129.23,129.19,3.8702]
[1726065430651,29.78,129.25,129.17,1.3656]
[1726065430843,3.8691,129.24,129.17,1.3656]
[1726065431141,29.78,129.25,129.17,1.3656]
[1726065431346,33.8202,129.29,129.23,3.869]
[1726065431640,33.8202,129.29,129.18,29.78]
[1726065432241,3.8685,129.26,129.22,3.8693]
[1726065432736,3.8685,129.26,129.17,1.3656]
[1726065432737,33.8202,129.29,129.18,29.78]
[1726065433038,33.8202,129.29,129.2,29.78]
[1726065433250,1.3466,129.29,129.25,3.8684]
[1726065433542,1.3466,129.29,129.21,6.51564772]
[1726065434337,1.3466,129.29,129.26,3.8683]
[1726065435135,1.3466,129.29,129.25,3.8684]
[1726065435847,5.2142,129.29,129.25,3.8684]
[1726065436043,1.3466,129.29,129.26,3.8683]
[1726065436540,1.3466,129.29,129.27,3.868]
[1726065437141,1.3466,129.29,129.21,6.51564772]
[1726065437342,31.1266,129.29,129.21,2.6483]
[1726065437641,34.9941,129.29,129.25,3.8684]
[1726065437841,5.2141,129.29,129.21,6.58701392]
[1726065438237,3.8678,129.28,129.24,3.8686]
[1726065438441,1.3466,129.29,129.21,6.58701392]
[1726065438642,1.3466,129.29,129.25,3.8685]
[1726065438943,5.2142,129.29,129.21,6.58701392]
[1726065439337,1.3466,129.29,129.26,3.868]
[1726065439744,1.3466,129.29,129.27,3.8679]
[1726065439945,31.1031,129.31,129.21,6.58701392]
[1726065440138,27.55301484,129.42,129.21,6.58701392]
[1726065440139,1.3749,129.36,129.24,29.78]
[1726065440340,5.263316,129.36,129.26,29.78]
[1726065440544,1.3749,129.36,129.27,1.4327]
[1726065440843,1.3749,129.36,129.31,3.8666]
[1726065441050,1.3749,129.36,129.3,3.83463592]
[1726065441447,1.3749,129.36,129.3,3.79749284]
[1726065441649,1.3749,129.36,129.27,2.8013]
[1726065442243,29.78,129.38,129.29,29.78]
[1726065442445,3.87448734,129.39,129.29,33.72683896]
[1726065442640,3.87448734,129.39,129.29,3.94683896]
[1726065442847,3.8648,129.38,129.32,3.8665]
[1726065443354,3.87448734,129.39,129.31,3.94658295]
[1726065443549,7.73908734,129.39,129.33,3.866]
[1726065443749,7.73908734,129.39,129.29,29.78]
[1726065444051,7.73908734,129.39,129.34,3.8659]
[1726065445040,29.78,129.38,129.27,2.8013]
[1726065446152,3.8651,129.37,129.27,2.8013]
[1726065446345,29.78,129.38,129.28,3.89924543]
[1726065446542,3.8655,129.36,129.28,3.89924543]
[1726065446743,29.78,129.34,129.27,2.8013]
[1726065447045,29.78,129.34,129.27,1.4327]
[1726065447551,29.78,129.32,129.22,31.0966]
[1726065447750,33.69084573,129.32,129.23,1.3257]
[1726065448150,29.78,129.3,129.23,1.3257]
[1726065448456,3.8679,129.28,129.18,29.78]
[1726065448656,29.78,129.28,129.18,29.78]
[1726065449143,29.78,129.26,129.17,1.4386]
[1726065449342,29.78,129.26,129.17,5.38613911]
[1726065449555,29.78,129.26,129.17,1.4386]
[1726065449957,1.3705,129.25,129.17,1.4386]
[1726065450146,29.78,129.24,129.15,2.6694]
[1726065450551,3.85040821,129.23,129.15,2.6694]
[1726065450750,29.78,129.24,129.15,2.6694]
[1726065450951,35.10775258,129.24,129.15,1.3257]
[1726065451255,3.8703,129.2,129.14,3.8718]
[1726065451450,29.78,129.22,129.1,29.78]
[1726065451644,29.78,129.19,129.1,29.78]
[1726065451850,29.78,129.19,129.13,3.8719]
[1726065452349,33.6504,129.19,129.13,3.8722]
[1726065452555,29.78,129.19,129.13,3.8722]
[1726065452858,29.78,129.19,129.14,3.8718]
[1726065453450,29.78,129.21,129.12,33.65078042]
[1726065453654,29.78,129.21,129.12,3.87078042]
[1726065453859,29.78,129.21,129.1,29.78]
[1726065454060,29.78,129.21,129.16,3.8711]
[1726065454560,29.78,129.23,129.13,3.81039021]
[1726065454854,29.78,129.23,129.12,29.78]
[1726065455050,29.78,129.23,129.12,33.70071848]
[1726065455451,1.3717,129.24,129.14,29.78]
[1726065455649,1.3717,129.24,129.15,2.7392]
[1726065455852,1.3717,129.24,129.19,3.8702]
[1726065456258,1.3717,129.24,129.15,4.0789]
[1726065456457,32.5872,129.25,129.15,4.0789]
[1726065457747,32.5872,129.25,129.2,3.8701]
[1726065457951,32.5872,129.25,129.15,4.0789]
[1726065459155,1.3705,129.25,129.17,29.78]
[1726065459355,1.3705,129.25,129.2,3.8699]
[1726065459663,1.3705,129.25,129.17,29.78]
[1726065459957,1.3509,129.29,129.19,29.78]
[1726065460160,2.7274,129.29,129.19,33.68316913]
[1726065460351,2.7274,129.29,129.19,3.90316913]